[Event "Titled Tuesday Blitz May 2 Late 2023"]
[White "Carrasco Miranda, Andres"]
[Black "Baskin, Robert"]
[WhiteFideId "3405990"]
[BlackFideId "24662402"]
[WhiteElo "2183"]
[BlackElo "2472"]
[Result "0-1"]
[Round "01"]
[TimeControl "180+2"]
[Date "2023.05.02"]
[WhiteClock "0:00:01"]
[BlackClock "0:00:01"]

1. d4 {[%clk 0:00:01]}  Nf6 {[%clk 0:00:01]} 2. c4 {[%clk 0:00:01]}  e6 {[%clk 0:00:01]} 3. g3 {[%clk 0:00:01]}  c5 {[%clk 0:00:01]} 4. d5 {[%clk 0:00:01]}  exd5 {[%clk 0:00:01]} 5. cxd5 {[%clk 0:00:01]}  d6 {[%clk 0:00:01]} 6. Nc3 {[%clk 0:00:01]}  g6 {[%clk 0:00:01]} 7. Bg2 {[%clk 0:00:01]}  Bg7 {[%clk 0:00:01]} 8. Nf3 {[%clk 0:00:01]}  O-O {[%clk 0:00:01]} 9. O-O {[%clk 0:00:01]}  a6 {[%clk 0:00:01]} 10. a4 {[%clk 0:00:01]}  Nbd7 {[%clk 0:00:01]} 11. Bf4 {[%clk 0:00:01]}  Qe7 {[%clk 0:00:01]} 12. Nd2 {[%clk 0:00:01]}  Nh5 {[%clk 0:00:01]} 13. e4 {[%clk 0:00:01]}  Nxf4 {[%clk 0:00:01]} 14. gxf4 {[%clk 0:00:01]}  Qh4 {[%clk 0:00:01]} 15. Qf3 {[%clk 0:00:01]}  Bh6 {[%clk 0:00:01]} 16. Ne2 {[%clk 0:00:01]}  Nf6 {[%clk 0:00:01]} 17. Qg3 {[%clk 0:00:01]}  Qh5 {[%clk 0:00:01]} 18. e5 {[%clk 0:00:01]}  Qxe2 {[%clk 0:00:01]} 19. exf6 {[%clk 0:00:01]}  Qxd2 {[%clk 0:00:01]} 20. Rfe1 {[%clk 0:00:01]}  Qxf4 {[%clk 0:00:01]} 21. Qc3 {[%clk 0:00:01]}  Bf5 {[%clk 0:00:01]} 22. Re7 {[%clk 0:00:01]}  Rfe8 {[%clk 0:00:01]} 23. Rae1 {[%clk 0:00:01]}  Rxe7 {[%clk 0:00:01]} 24. fxe7 {[%clk 0:00:01]}  Re8 {[%clk 0:00:01]} 25. Qb3 {[%clk 0:00:01]}  Qb4 {[%clk 0:00:01]} 0-1


[Site "https://www.chess.com"]

[Event "Titled Tuesday Blitz May 2 Late 2023"]
[White "Maatman, Nick"]
[Black "Kovacs, Klara"]
[WhiteFideId "1040391"]
[BlackFideId "733210"]
[WhiteElo "2346"]
[BlackElo "2179"]
[Result "1-0"]
[Round "01"]
[TimeControl "180+2"]
[Date "2023.05.02"]
[WhiteClock "0:00:00"]
[BlackClock "0:00:00"]

1. d4 {[%clk 0:00:01]}  e6 {[%clk 0:00:01]} 2. e4 {[%clk 0:00:01]}  Nf6 {[%clk 0:00:01]} 3. e5 {[%clk 0:00:01]}  Nd5 {[%clk 0:00:01]} 4. c4 {[%clk 0:00:01]}  Nb6 {[%clk 0:00:01]} 5. Nc3 {[%clk 0:00:01]}  d5 {[%clk 0:00:01]} 6. c5 {[%clk 0:00:01]}  N6d7 {[%clk 0:00:01]} 7. Rb1 {[%clk 0:00:01]}  b6 {[%clk 0:00:01]} 8. b4 {[%clk 0:00:01]}  a5 {[%clk 0:00:01]} 9. a3 {[%clk 0:00:01]}  Be7 {[%clk 0:00:01]} 10. f4 {[%clk 0:00:01]}  g5 {[%clk 0:00:01]} 11. fxg5 {[%clk 0:00:01]}  Bxg5 {[%clk 0:00:01]} 12. Qh5 {[%clk 0:00:01]}  Bxc1 {[%clk 0:00:01]} 13. Rxc1 {[%clk 0:00:01]}  axb4 {[%clk 0:00:01]} 14. axb4 {[%clk 0:00:01]}  bxc5 {[%clk 0:00:01]} 15. bxc5 {[%clk 0:00:01]}  Ba6 {[%clk 0:00:01]} 16. Nf3 {[%clk 0:00:01]}  Bxf1 {[%clk 0:00:01]} 17. Rxf1 {[%clk 0:00:01]}  Rg8 {[%clk 0:00:01]} 18. Qxh7 {[%clk 0:00:01]}  Rxg2 {[%clk 0:00:01]} 19. Nh4 {[%clk 0:00:01]}  Qg5 {[%clk 0:00:01]} 20. Qxf7+ {[%clk 0:00:01]}  Kd8 {[%clk 0:00:01]} 21. Nxg2 {[%clk 0:00:01]}  Qxc1+ {[%clk 0:00:01]} 22. Nd1 {[%clk 0:00:01]}  Kc8 {[%clk 0:00:01]} 23. Qxe6 {[%clk 0:00:00]}  Ra1 {[%clk 0:00:00]} 24. Qg4 {[%clk 0:00:00]}  Qc3+ {[%clk 0:00:00]} 25. Kf2 {[%clk 0:00:00]}  Qd2+ {[%clk 0:00:00]} 26. Kg1 {[%clk 0:00:00]}  Kb7 {[%clk 0:00:00]} 27. Nde3 {[%clk 0:00:00]}  Rxf1+ {[%clk 0:00:00]} 28. Nxf1 {[%clk 0:00:00]}  Nf8 {[%clk 0:00:00]} 29. Nxd2 {[%clk 0:00:00]} 1-0


[Site "https://www.chess.com"]

[Event "Titled Tuesday Blitz May 2 Late 2023"]
[White "Martins, Bruno Andre Leite"]
[Black "Guzman Moneo, Alberto"]
[WhiteFideId "1942255"]
[BlackFideId "2209616"]
[WhiteElo "2240"]
[BlackElo "2157"]
[Result "1-0"]
[Round "01"]
[TimeControl "180+2"]
[Date "2023.05.02"]
[WhiteClock "0:00:00"]
[BlackClock "0:00:00"]

1. Nf3 {[%clk 0:00:01]}  g6 {[%clk 0:00:01]} 2. g3 {[%clk 0:00:01]}  Bg7 {[%clk 0:00:01]} 3. Bg2 {[%clk 0:00:01]}  d6 {[%clk 0:00:01]} 4. O-O {[%clk 0:00:01]}  e5 {[%clk 0:00:01]} 5. c4 {[%clk 0:00:01]}  f5 {[%clk 0:00:01]} 6. d4 {[%clk 0:00:01]}  e4 {[%clk 0:00:01]} 7. Ng5 {[%clk 0:00:01]}  h6 {[%clk 0:00:01]} 8. Nh3 {[%clk 0:00:01]}  Be6 {[%clk 0:00:01]} 9. Nc3 {[%clk 0:00:01]}  Bf7 {[%clk 0:00:01]} 10. d5 {[%clk 0:00:01]}  Nf6 {[%clk 0:00:01]} 11. Nf4 {[%clk 0:00:00]}  O-O {[%clk 0:00:01]} 12. f3 {[%clk 0:00:00]}  Re8 {[%clk 0:00:01]} 13. fxe4 {[%clk 0:00:00]}  fxe4 {[%clk 0:00:01]} 14. Qb3 {[%clk 0:00:00]}  Nbd7 {[%clk 0:00:01]} 15. Be3 {[%clk 0:00:00]}  b6 {[%clk 0:00:01]} 16. h3 {[%clk 0:00:00]}  Nc5 {[%clk 0:00:01]} 17. Qc2 {[%clk 0:00:00]}  a5 {[%clk 0:00:01]} 18. Bxc5 {[%clk 0:00:00]}  bxc5 {[%clk 0:00:01]} 19. Nxe4 {[%clk 0:00:00]}  g5 {[%clk 0:00:00]} 20. Nxf6+ {[%clk 0:00:00]}  Qxf6 {[%clk 0:00:00]} 21. Ne6 {[%clk 0:00:00]}  Qxb2 {[%clk 0:00:00]} 22. Qf5 {[%clk 0:00:00]}  Bxe6 {[%clk 0:00:00]} 23. dxe6 {[%clk 0:00:00]}  Rf8 {[%clk 0:00:00]} 24. Qg6 {[%clk 0:00:00]}  Rae8 {[%clk 0:00:00]} 25. Be4 {[%clk 0:00:00]}  Rf6 {[%clk 0:00:00]} 26. Rxf6 {[%clk 0:00:00]}  Qxf6 {[%clk 0:00:00]} 27. Qxe8+ {[%clk 0:00:00]}  Bf8 {[%clk 0:00:00]} 28. Qf7+ {[%clk 0:00:00]}  Qxf7 {[%clk 0:00:00]} 29. exf7+ {[%clk 0:00:00]}  Kxf7 {[%clk 0:00:00]} 30. Rf1+ {[%clk 0:00:00]}  Ke7 {[%clk 0:00:00]} 31. Bd5 {[%clk 0:00:00]}  Ke8 {[%clk 0:00:00]} 32. Rf5 {[%clk 0:00:00]}  Bg7 {[%clk 0:00:00]} 33. Bc6+ {[%clk 0:00:00]}  Kd8 {[%clk 0:00:00]} 34. g4 {[%clk 0:00:00]}  Be5 {[%clk 0:00:00]} 35. a4 {[%clk 0:00:00]}  Ke7 {[%clk 0:00:00]} 36. Kg2 {[%clk 0:00:00]}  Ke6 {[%clk 0:00:00]} 37. Kf3 {[%clk 0:00:00]}  Bd4 {[%clk 0:00:00]} 38. Ke4 {[%clk 0:00:00]}  Bc3 {[%clk 0:00:00]} 39. Bd5+ {[%clk 0:00:00]}  Ke7 {[%clk 0:00:00]} 40. Rf7+ {[%clk 0:00:00]}  Kd8 {[%clk 0:00:00]} 41. Kf5 {[%clk 0:00:00]}  Be5 {[%clk 0:00:00]} 42. Ke6 {[%clk 0:00:00]}  Ke8 {[%clk 0:00:00]} 43. Bc6+ {[%clk 0:00:00]} 1-0


[Site "https://www.chess.com"]

[Event "Titled Tuesday Blitz May 2 Late 2023"]
[White "Jarocka, Liwia"]
[Black "Maze, Sebastien"]
[WhiteFideId "21807558"]
[BlackFideId "613762"]
[WhiteElo "2013"]
[BlackElo "2462"]
[Result "1-0"]
[Round "01"]
[TimeControl "180+2"]
[Date "2023.05.02"]
[WhiteClock "0:00:00"]
[BlackClock "0:00:00"]

1. c4 {[%clk 0:00:01]}  f5 {[%clk 0:00:01]} 2. Nc3 {[%clk 0:00:01]}  Nf6 {[%clk 0:00:01]} 3. g3 {[%clk 0:00:01]}  e5 {[%clk 0:00:01]} 4. Bg2 {[%clk 0:00:01]}  Bb4 {[%clk 0:00:01]} 5. Qc2 {[%clk 0:00:01]}  Bxc3 {[%clk 0:00:01]} 6. Qxc3 {[%clk 0:00:01]}  d6 {[%clk 0:00:01]} 7. d3 {[%clk 0:00:01]}  h6 {[%clk 0:00:01]} 8. e3 {[%clk 0:00:01]}  O-O {[%clk 0:00:01]} 9. Ne2 {[%clk 0:00:01]}  Nc6 {[%clk 0:00:01]} 10. O-O {[%clk 0:00:01]}  Qe8 {[%clk 0:00:01]} 11. b3 {[%clk 0:00:01]}  Qh5 {[%clk 0:00:01]} 12. Re1 {[%clk 0:00:01]}  f4 {[%clk 0:00:01]} 13. exf4 {[%clk 0:00:01]}  Bh3 {[%clk 0:00:01]} 14. fxe5 {[%clk 0:00:01]}  dxe5 {[%clk 0:00:01]} 15. Bh1 {[%clk 0:00:01]}  Ng4 {[%clk 0:00:01]} 16. f4 {[%clk 0:00:01]}  Rae8 {[%clk 0:00:01]} 17. Ba3 {[%clk 0:00:01]}  Rf6 {[%clk 0:00:01]} 18. fxe5 {[%clk 0:00:01]}  Rf2 {[%clk 0:00:01]} 19. Nf4 {[%clk 0:00:01]}  Rxf4 {[%clk 0:00:00]} 20. gxf4 {[%clk 0:00:01]}  Qh4 {[%clk 0:00:00]} 21. Re2 {[%clk 0:00:00]}  Rd8 {[%clk 0:00:00]} 22. Bd5+ {[%clk 0:00:00]}  Kh7 {[%clk 0:00:00]} 23. d4 {[%clk 0:00:00]}  Qh5 {[%clk 0:00:00]} 24. Rae1 {[%clk 0:00:00]}  a5 {[%clk 0:00:00]} 25. Be4+ {[%clk 0:00:00]}  Kh8 {[%clk 0:00:00]} 26. d5 {[%clk 0:00:00]}  Nb4 {[%clk 0:00:00]} 27. Qg3 {[%clk 0:00:00]}  Rf8 {[%clk 0:00:00]} 28. f5 {[%clk 0:00:00]}  Re8 {[%clk 0:00:00]} 29. e6 {[%clk 0:00:00]}  Nf6 {[%clk 0:00:00]} 30. Bb2 {[%clk 0:00:00]}  Bxf5 {[%clk 0:00:00]} 31. Bxf5 {[%clk 0:00:00]}  Qxf5 {[%clk 0:00:00]} 32. Rf2 {[%clk 0:00:00]}  Qg5 {[%clk 0:00:00]} 33. Qxg5 {[%clk 0:00:00]}  hxg5 {[%clk 0:00:00]} 34. Bxf6 {[%clk 0:00:00]}  gxf6 {[%clk 0:00:00]} 35. Re3 {[%clk 0:00:00]}  Kg7 {[%clk 0:00:00]} 36. Kg2 {[%clk 0:00:00]}  Kg6 {[%clk 0:00:00]} 37. Ref3 {[%clk 0:00:00]}  f5 {[%clk 0:00:00]} 38. Rxf5 {[%clk 0:00:00]}  Nd3 {[%clk 0:00:00]} 39. Rf6+ {[%clk 0:00:00]}  Kh5 {[%clk 0:00:00]} 40. R2f5 {[%clk 0:00:00]}  Nf4+ {[%clk 0:00:00]} 41. Rxf4 {[%clk 0:00:00]}  gxf4 {[%clk 0:00:00]} 42. Rxf4 {[%clk 0:00:00]}  c6 {[%clk 0:00:00]} 43. Rf7 {[%clk 0:00:00]}  cxd5 {[%clk 0:00:00]} 44. cxd5 {[%clk 0:00:00]}  Kg6 {[%clk 0:00:00]} 45. Rxb7 {[%clk 0:00:00]}  Kf6 {[%clk 0:00:00]} 46. Rd7 {[%clk 0:00:00]}  Ke5 {[%clk 0:00:00]} 47. e7 {[%clk 0:00:00]}  Kf6 {[%clk 0:00:00]} 48. d6 {[%clk 0:00:00]}  Rg8+ {[%clk 0:00:00]} 49. Kf2 {[%clk 0:00:00]}  Ke6 {[%clk 0:00:00]} 50. Rd8 {[%clk 0:00:00]} 1-0


[Site "https://www.chess.com"]

[Event "Titled Tuesday Blitz May 2 Late 2023"]
[White "Manukyan, Sargis A."]
[Black "Onslow, Alfie"]
[WhiteFideId "13303970"]
[BlackFideId "436976"]
[WhiteElo "2187"]
[BlackElo "2114"]
[Result "1-0"]
[Round "01"]
[TimeControl "180+2"]
[Date "2023.05.02"]
[WhiteClock "0:00:00"]
[BlackClock "0:00:00"]

1. d4 {[%clk 0:00:01]}  Nf6 {[%clk 0:00:01]} 2. c4 {[%clk 0:00:01]}  c5 {[%clk 0:00:01]} 3. d5 {[%clk 0:00:01]}  b5 {[%clk 0:00:01]} 4. cxb5 {[%clk 0:00:01]}  a6 {[%clk 0:00:01]} 5. bxa6 {[%clk 0:00:01]}  g6 {[%clk 0:00:01]} 6. Nc3 {[%clk 0:00:01]}  Bg7 {[%clk 0:00:01]} 7. Nf3 {[%clk 0:00:01]}  O-O {[%clk 0:00:01]} 8. g3 {[%clk 0:00:01]}  d6 {[%clk 0:00:01]} 9. Bg2 {[%clk 0:00:01]}  Nbd7 {[%clk 0:00:01]} 10. O-O {[%clk 0:00:01]}  Nb6 {[%clk 0:00:01]} 11. Nh4 {[%clk 0:00:01]}  Bxa6 {[%clk 0:00:01]} 12. Rb1 {[%clk 0:00:01]}  Qd7 {[%clk 0:00:01]} 13. b3 {[%clk 0:00:01]}  Rfc8 {[%clk 0:00:01]} 14. Qc2 {[%clk 0:00:01]}  c4 {[%clk 0:00:01]} 15. b4 {[%clk 0:00:01]}  Bb5 {[%clk 0:00:01]} 16. a3 {[%clk 0:00:01]}  Na4 {[%clk 0:00:01]} 17. Nxb5 {[%clk 0:00:01]}  Qxb5 {[%clk 0:00:01]} 18. e4 {[%clk 0:00:01]}  Nd7 {[%clk 0:00:01]} 19. Nf3 {[%clk 0:00:01]}  Nc3 {[%clk 0:00:00]} 20. Ra1 {[%clk 0:00:01]}  Na4 {[%clk 0:00:00]} 21. Be3 {[%clk 0:00:01]}  Bxa1 {[%clk 0:00:00]} 22. Rxa1 {[%clk 0:00:01]}  c3 {[%clk 0:00:00]} 23. Bf1 {[%clk 0:00:01]}  Qb7 {[%clk 0:00:00]} 24. h4 {[%clk 0:00:01]}  h5 {[%clk 0:00:00]} 25. Bd4 {[%clk 0:00:00]}  f6 {[%clk 0:00:00]} 26. e5 {[%clk 0:00:00]}  f5 {[%clk 0:00:00]} 27. exd6 {[%clk 0:00:00]}  exd6 {[%clk 0:00:00]} 28. Qe2 {[%clk 0:00:00]}  Qxd5 {[%clk 0:00:00]} 29. Qe7 {[%clk 0:00:00]}  Qf7 {[%clk 0:00:00]} 30. Qxd6 {[%clk 0:00:00]}  Nf8 {[%clk 0:00:00]} 31. Ng5 {[%clk 0:00:00]}  Qd7 {[%clk 0:00:00]} 32. Qf6 {[%clk 0:00:00]}  Qxd4 {[%clk 0:00:00]} 33. Qxd4 {[%clk 0:00:00]}  c2 {[%clk 0:00:00]} 34. Bc4+ {[%clk 0:00:00]} 1-0


[Site "https://www.chess.com"]

[Event "Titled Tuesday Blitz May 2 Late 2023"]
[White "Buchenau, Frank"]
[Black "Tatarinov, Dmitry"]
[WhiteFideId "4604350"]
[BlackFideId "24160067"]
[WhiteElo "2157"]
[BlackElo "2326"]
[Result "0-1"]
[Round "01"]
[TimeControl "180+2"]
[Date "2023.05.02"]
[WhiteClock "0:00:00"]
[BlackClock "0:00:00"]

1. e4 {[%clk 0:00:01]}  c5 {[%clk 0:00:01]} 2. Nf3 {[%clk 0:00:01]}  d6 {[%clk 0:00:01]} 3. Bb5+ {[%clk 0:00:01]}  Nd7 {[%clk 0:00:01]} 4. O-O {[%clk 0:00:01]}  a6 {[%clk 0:00:01]} 5. Bd3 {[%clk 0:00:01]}  Ngf6 {[%clk 0:00:01]} 6. Re1 {[%clk 0:00:01]}  Ne5 {[%clk 0:00:01]} 7. Nxe5 {[%clk 0:00:01]}  dxe5 {[%clk 0:00:01]} 8. a4 {[%clk 0:00:01]}  e6 {[%clk 0:00:01]} 9. a5 {[%clk 0:00:01]}  Be7 {[%clk 0:00:01]} 10. b3 {[%clk 0:00:01]}  O-O {[%clk 0:00:01]} 11. Bb2 {[%clk 0:00:01]}  Nd7 {[%clk 0:00:01]} 12. Bf1 {[%clk 0:00:01]}  Qc7 {[%clk 0:00:01]} 13. d3 {[%clk 0:00:01]}  Nb8 {[%clk 0:00:01]} 14. Nd2 {[%clk 0:00:01]}  Nc6 {[%clk 0:00:01]} 15. Nc4 {[%clk 0:00:01]}  Bd7 {[%clk 0:00:01]} 16. Qg4 {[%clk 0:00:01]}  Rad8 {[%clk 0:00:01]} 17. f4 {[%clk 0:00:01]}  Bf6 {[%clk 0:00:01]} 18. fxe5 {[%clk 0:00:01]}  Nxe5 {[%clk 0:00:01]} 19. Qg3 {[%clk 0:00:01]}  Nxc4 {[%clk 0:00:01]} 20. Qxc7 {[%clk 0:00:01]}  Nxb2 {[%clk 0:00:01]} 21. e5 {[%clk 0:00:01]}  Bg5 {[%clk 0:00:01]} 22. Reb1 {[%clk 0:00:01]}  Be3+ {[%clk 0:00:01]} 23. Kh1 {[%clk 0:00:01]}  Bd4 {[%clk 0:00:01]} 24. Ra2 {[%clk 0:00:01]}  Bc6 {[%clk 0:00:01]} 25. Raxb2 {[%clk 0:00:01]}  Rd7 {[%clk 0:00:01]} 26. Qb6 {[%clk 0:00:01]}  Rc8 {[%clk 0:00:01]} 27. Ra2 {[%clk 0:00:01]}  Bxe5 {[%clk 0:00:01]} 28. Re1 {[%clk 0:00:00]}  Bc7 {[%clk 0:00:01]} 29. Qxc5 {[%clk 0:00:00]}  Bg3 {[%clk 0:00:01]} 30. Qe3 {[%clk 0:00:00]}  Bxe1 {[%clk 0:00:00]} 31. Qxe1 {[%clk 0:00:00]}  h5 {[%clk 0:00:00]} 32. Be2 {[%clk 0:00:00]}  Rdc7 {[%clk 0:00:00]} 33. Bxh5 {[%clk 0:00:00]}  g6 {[%clk 0:00:00]} 34. Bg4 {[%clk 0:00:00]}  Bd5 {[%clk 0:00:00]} 35. c4 {[%clk 0:00:00]}  Bc6 {[%clk 0:00:00]} 36. Qe3 {[%clk 0:00:00]}  Rd8 {[%clk 0:00:00]} 37. Bf3 {[%clk 0:00:00]}  Rcd7 {[%clk 0:00:00]} 38. Rd2 {[%clk 0:00:00]}  Rd4 {[%clk 0:00:00]} 39. b4 {[%clk 0:00:00]}  Bxf3 {[%clk 0:00:00]} 40. gxf3 {[%clk 0:00:00]}  R8d7 {[%clk 0:00:00]} 41. Kg2 {[%clk 0:00:00]}  Kg7 {[%clk 0:00:00]} 42. Qe5+ {[%clk 0:00:00]}  Kg8 {[%clk 0:00:00]} 43. Qe3 {[%clk 0:00:00]}  Kg7 {[%clk 0:00:00]} 44. b5 {[%clk 0:00:00]}  Kg8 {[%clk 0:00:00]} 45. Kf2 {[%clk 0:00:00]}  Kh7 {[%clk 0:00:00]} 46. Ke2 {[%clk 0:00:00]}  Rh4 {[%clk 0:00:00]} 47. Qf2 {[%clk 0:00:00]}  Rh5 {[%clk 0:00:00]} 48. bxa6 {[%clk 0:00:00]}  Rxa5 {[%clk 0:00:00]} 49. axb7 {[%clk 0:00:00]}  Rxb7 {[%clk 0:00:00]} 50. d4 {[%clk 0:00:00]}  Ra3 {[%clk 0:00:00]} 51. d5 {[%clk 0:00:00]}  exd5 {[%clk 0:00:00]} 52. cxd5 {[%clk 0:00:00]}  Re7+ {[%clk 0:00:00]} 53. Kf1 {[%clk 0:00:00]}  Re5 {[%clk 0:00:00]} 54. d6 {[%clk 0:00:00]}  Ra1+ {[%clk 0:00:00]} 55. Kg2 {[%clk 0:00:00]}  Rg5+ {[%clk 0:00:00]} 56. Kh3 {[%clk 0:00:00]}  Rh5+ {[%clk 0:00:00]} 57. Kg4 {[%clk 0:00:00]}  Ra4+ {[%clk 0:00:00]} 58. f4 {[%clk 0:00:00]}  Ra3 {[%clk 0:00:00]} 59. Qg3 {[%clk 0:00:00]}  f5# {[%clk 0:00:00]} 0-1


[Site "https://www.chess.com"]

[Event "Titled Tuesday Blitz May 2 Late 2023"]
[White "De Souza, Cristiano Gomes"]
[Black "Zarubitski, Viachaslau"]
[WhiteFideId "2151758"]
[BlackFideId "13509373"]
[WhiteElo "2068"]
[BlackElo "2284"]
[Result "0-1"]
[Round "01"]
[TimeControl "180+2"]
[Date "2023.05.02"]
[WhiteClock "0:00:00"]
[BlackClock "0:00:00"]

1. d4 {[%clk 0:00:01]}  Nf6 {[%clk 0:00:01]} 2. c4 {[%clk 0:00:01]}  Nc6 {[%clk 0:00:01]} 3. Nf3 {[%clk 0:00:01]}  e6 {[%clk 0:00:01]} 4. a3 {[%clk 0:00:01]}  g6 {[%clk 0:00:01]} 5. Nbd2 {[%clk 0:00:01]}  Bg7 {[%clk 0:00:01]} 6. e3 {[%clk 0:00:01]}  O-O {[%clk 0:00:01]} 7. b3 {[%clk 0:00:01]}  d6 {[%clk 0:00:01]} 8. Bb2 {[%clk 0:00:01]}  e5 {[%clk 0:00:01]} 9. dxe5 {[%clk 0:00:01]}  Ng4 {[%clk 0:00:01]} 10. h3 {[%clk 0:00:01]}  Ngxe5 {[%clk 0:00:01]} 11. Nxe5 {[%clk 0:00:01]}  Nxe5 {[%clk 0:00:01]} 12. Qc1 {[%clk 0:00:01]}  Bf5 {[%clk 0:00:01]} 13. e4 {[%clk 0:00:01]}  Re8 {[%clk 0:00:01]} 14. Be2 {[%clk 0:00:01]}  Qg5 {[%clk 0:00:01]} 15. Kf1 {[%clk 0:00:00]}  Bd7 {[%clk 0:00:01]} 16. g3 {[%clk 0:00:00]}  f5 {[%clk 0:00:00]} 17. f4 {[%clk 0:00:00]}  Qxg3 {[%clk 0:00:00]} 18. fxe5 {[%clk 0:00:00]}  fxe4 {[%clk 0:00:00]} 19. Bf3 {[%clk 0:00:00]}  exf3 {[%clk 0:00:00]} 0-1


[Site "https://www.chess.com"]

[Event "Titled Tuesday Blitz May 2 Late 2023"]
[White "Kim, Sergey"]
[Black "Ardila, Oscar Humberto"]
[WhiteFideId "13700570"]
[BlackFideId "4404742"]
[WhiteElo "2295"]
[BlackElo "1918"]
[Result "0-1"]
[Round "01"]
[TimeControl "180+2"]
[Date "2023.05.02"]
[WhiteClock "0:00:01"]
[BlackClock "0:00:00"]

1. d4 {[%clk 0:00:01]}  Nf6 {[%clk 0:00:01]} 2. c4 {[%clk 0:00:01]}  g6 {[%clk 0:00:01]} 3. Nc3 {[%clk 0:00:01]}  Bg7 {[%clk 0:00:01]} 4. e4 {[%clk 0:00:01]}  d6 {[%clk 0:00:01]} 5. Nge2 {[%clk 0:00:01]}  O-O {[%clk 0:00:01]} 6. Ng3 {[%clk 0:00:01]}  Nbd7 {[%clk 0:00:01]} 7. Be2 {[%clk 0:00:01]}  c6 {[%clk 0:00:01]} 8. O-O {[%clk 0:00:01]}  e5 {[%clk 0:00:01]} 9. d5 {[%clk 0:00:01]}  cxd5 {[%clk 0:00:01]} 10. cxd5 {[%clk 0:00:01]}  h5 {[%clk 0:00:01]} 11. Bg5 {[%clk 0:00:01]}  Qb6 {[%clk 0:00:01]} 12. Qd2 {[%clk 0:00:01]}  Qd4 {[%clk 0:00:01]} 13. Qc1 {[%clk 0:00:01]}  Qb6 {[%clk 0:00:01]} 14. Be3 {[%clk 0:00:01]}  Qd8 {[%clk 0:00:01]} 15. f3 {[%clk 0:00:01]}  h4 {[%clk 0:00:01]} 16. Nh1 {[%clk 0:00:01]}  Nh5 {[%clk 0:00:01]} 17. Nb5 {[%clk 0:00:01]}  Nf4 {[%clk 0:00:01]} 18. Bxf4 {[%clk 0:00:01]}  exf4 {[%clk 0:00:01]} 19. Nxd6 {[%clk 0:00:01]}  Qb6+ {[%clk 0:00:01]} 20. Nf2 {[%clk 0:00:01]}  Qxd6 {[%clk 0:00:01]} 21. Kh1 {[%clk 0:00:01]}  Nf6 {[%clk 0:00:01]} 22. Nd3 {[%clk 0:00:01]}  Nh5 {[%clk 0:00:01]} 23. Qe1 {[%clk 0:00:01]}  Qe7 {[%clk 0:00:00]} 24. Rf2 {[%clk 0:00:01]}  Bd4 {[%clk 0:00:00]} 25. Rf1 {[%clk 0:00:01]}  Ng3+ {[%clk 0:00:00]} 0-1


[Site "https://www.chess.com"]

[Event "Titled Tuesday Blitz May 2 Late 2023"]
[White "Ng, Gary"]
[Black "Antonica, Dragos-Andrei"]
[WhiteFideId "2604914"]
[BlackFideId "1246372"]
[WhiteElo "2213"]
[BlackElo "2285"]
[Result "0-1"]
[Round "01"]
[TimeControl "180+2"]
[Date "2023.05.02"]
[WhiteClock "0:00:00"]
[BlackClock "0:00:00"]

1. d4 {[%clk 0:00:01]}  Nf6 {[%clk 0:00:01]} 2. Bf4 {[%clk 0:00:01]}  e6 {[%clk 0:00:01]} 3. e3 {[%clk 0:00:01]}  b6 {[%clk 0:00:01]} 4. Qf3 {[%clk 0:00:01]}  Nc6 {[%clk 0:00:01]} 5. Be2 {[%clk 0:00:01]}  Bb7 {[%clk 0:00:01]} 6. Qg3 {[%clk 0:00:01]}  Ne4 {[%clk 0:00:01]} 7. Qh3 {[%clk 0:00:01]}  f5 {[%clk 0:00:01]} 8. Bh5+ {[%clk 0:00:01]}  g6 {[%clk 0:00:01]} 9. Bxg6+ {[%clk 0:00:01]}  hxg6 {[%clk 0:00:01]} 10. Qxh8 {[%clk 0:00:01]}  Qe7 {[%clk 0:00:01]} 11. c3 {[%clk 0:00:01]}  O-O-O {[%clk 0:00:01]} 12. Nf3 {[%clk 0:00:01]}  g5 {[%clk 0:00:01]} 13. Bg3 {[%clk 0:00:01]}  Bg7 {[%clk 0:00:01]} 14. Qh7 {[%clk 0:00:01]}  Rh8 {[%clk 0:00:01]} 15. Qg6 {[%clk 0:00:01]}  Rh6 {[%clk 0:00:01]} 16. Qxh6 {[%clk 0:00:00]}  Bxh6 {[%clk 0:00:01]} 17. h3 {[%clk 0:00:00]}  Nxg3 {[%clk 0:00:01]} 18. fxg3 {[%clk 0:00:00]}  Qd6 {[%clk 0:00:01]} 19. Kf2 {[%clk 0:00:00]}  Ne7 {[%clk 0:00:01]} 20. Nbd2 {[%clk 0:00:00]}  Nd5 {[%clk 0:00:01]} 21. Nc4 {[%clk 0:00:00]}  Qf8 {[%clk 0:00:01]} 22. a4 {[%clk 0:00:00]}  Nf6 {[%clk 0:00:01]} 23. a5 {[%clk 0:00:00]}  Ne4+ {[%clk 0:00:01]} 24. Ke1 {[%clk 0:00:00]}  Nxg3 {[%clk 0:00:01]} 25. axb6 {[%clk 0:00:00]}  Nxh1 {[%clk 0:00:01]} 26. bxa7 {[%clk 0:00:00]}  Ba8 {[%clk 0:00:01]} 27. Nfe5 {[%clk 0:00:00]}  f4 {[%clk 0:00:00]} 28. e4 {[%clk 0:00:00]}  Bg7 {[%clk 0:00:00]} 29. Ra3 {[%clk 0:00:00]}  Bxe5 {[%clk 0:00:00]} 30. Nxe5 {[%clk 0:00:00]}  Qd6 {[%clk 0:00:00]} 31. Rb3 {[%clk 0:00:00]}  Bb7 {[%clk 0:00:00]} 32. Nc4 {[%clk 0:00:00]}  Qa6 {[%clk 0:00:00]} 33. Na3 {[%clk 0:00:00]}  Qxa7 {[%clk 0:00:00]} 34. Kf1 {[%clk 0:00:00]}  Ng3+ {[%clk 0:00:00]} 35. Kf2 {[%clk 0:00:00]} 0-1


[Site "https://www.chess.com"]

[Event "Titled Tuesday Blitz May 2 Late 2023"]
[White "Msellek, Ilyass"]
[Black "Gabdushev, Ruslan"]
[WhiteFideId "675938"]
[BlackFideId "4137833"]
[WhiteElo "2302"]
[BlackElo "2233"]
[Result "1-0"]
[Round "01"]
[TimeControl "180+2"]
[Date "2023.05.02"]
[WhiteClock "0:00:28"]
[BlackClock "0:00:31"]

1. d4 {[%clk 0:02:56]}  Nc6 {[%clk 0:02:59]} 2. d5 {[%clk 0:02:56]}  Ne5 {[%clk 0:02:59]} 3. e4 {[%clk 0:02:25]}  Ng6 {[%clk 0:02:57]} 4. h4 {[%clk 0:02:25]}  e5 {[%clk 0:02:54]} 5. h5 {[%clk 0:02:23]}  N6e7 {[%clk 0:02:54]} 6. c4 {[%clk 0:02:19]}  d6 {[%clk 0:02:49]} 7. Nc3 {[%clk 0:02:20]}  g6 {[%clk 0:02:40]} 8. c5 {[%clk 0:02:06]}  dxc5 {[%clk 0:02:30]} 9. Nf3 {[%clk 0:02:04]}  f6 {[%clk 0:02:28]} 10. hxg6 {[%clk 0:01:56]}  Nxg6 {[%clk 0:02:26]} 11. Bb5+ {[%clk 0:01:56]}  Bd7 {[%clk 0:02:24]} 12. Be3 {[%clk 0:01:37]}  a6 {[%clk 0:02:23]} 13. Bxd7+ {[%clk 0:01:37]}  Qxd7 {[%clk 0:02:23]} 14. a4 {[%clk 0:01:38]}  Bd6 {[%clk 0:02:19]} 15. Nd2 {[%clk 0:01:37]}  f5 {[%clk 0:02:14]} 16. exf5 {[%clk 0:01:11]}  Qxf5 {[%clk 0:02:12]} 17. Nde4 {[%clk 0:01:12]}  Nf4 {[%clk 0:01:58]} 18. Bxf4 {[%clk 0:01:10]}  exf4 {[%clk 0:01:52]} 19. Rh5 {[%clk 0:00:59]}  Qg6 {[%clk 0:01:45]} 20. Rg5 {[%clk 0:00:59]}  Qh6 {[%clk 0:01:41]} 21. Qg4 {[%clk 0:00:58]}  Ne7 {[%clk 0:01:17]} 22. O-O-O {[%clk 0:00:55]}  Kf7 {[%clk 0:01:02]} 23. Rh5 {[%clk 0:00:42]}  Qg6 {[%clk 0:00:55]} 24. Rg5 {[%clk 0:00:42]}  Qh6 {[%clk 0:00:54]} 25. Re1 {[%clk 0:00:43]}  Rag8 {[%clk 0:00:50]} 26. Nxd6+ {[%clk 0:00:33]}  cxd6 {[%clk 0:00:45]} 27. Qxf4+ {[%clk 0:00:32]}  Qf6 {[%clk 0:00:41]} 28. Qxf6+ {[%clk 0:00:27]}  Kxf6 {[%clk 0:00:41]} 29. Ne4+ {[%clk 0:00:27]}  Kf7 {[%clk 0:00:40]} 30. Nxd6+ {[%clk 0:00:28]}  Kf8 {[%clk 0:00:39]} 31. Rge5 {[%clk 0:00:27]}  Ng6 {[%clk 0:00:33]} 32. Rf5+ {[%clk 0:00:25]}  Kg7 {[%clk 0:00:33]} 33. Rf7+ {[%clk 0:00:26]}  Kh6 {[%clk 0:00:33]} 34. Rh1+ {[%clk 0:00:27]}  Kg5 {[%clk 0:00:32]} 35. Ne4+ {[%clk 0:00:28]}  Kg4 {[%clk 0:00:31]} 36. f3# {[%clk 0:00:28]} 1-0


[Site "https://www.chess.com"]